fUST/lending_fUST_20250713
["ID","MTS","AMOUNT","RATE_DAILY","PERIOD"]
[371752372,1752417059215,-460.0,0.00019178,2]
[371752373,1752417059225,-460.0,0.00019178,2]
[371752374,1752417059235,-581.35,0.00019178,2]
[371752375,1752417059244,-151.0,0.00019178,2]
[371752376,1752417059254,-151.0,0.00019178,2]
[371752377,1752417059263,-648.37,0.00019178,2]
[371752378,1752417059273,-673.61,0.00019178,2]
[371752379,1752417059282,-460.0,0.00019178,2]
[371752380,1752417059292,-557.7,0.00019178,2]
[371752381,1752417059302,-460.0,0.00019178,2]
[371752382,1752417059312,-460.0,0.00019178,2]
[371752383,1752417059321,-460.0,0.00019178,2]
[371752384,1752417059331,-241.39046,0.00019178,2]
[371752385,1752417059344,-241.39046,0.00019178,2]
[371752386,1752417059354,-151.0,0.00019178,2]
[371752387,1752417059363,-460.0,0.00019178,2]
[371752388,1752417059372,-460.0,0.00019178,2]
[371752389,1752417059382,-576.54,0.00019178,2]
[371752390,1752417059392,-460.0,0.00019178,2]
[371752391,1752417059401,-1648.08,0.00019178,2]
[371752392,1752417059411,-498.33,0.00019178,2]
[371752393,1752417059420,-460.0,0.00019178,2]
[371752394,1752417059430,-460.0,0.00019178,2]
[371752395,1752417059439,-460.0,0.00019178,2]
[371752396,1752417059449,-650.21,0.00019178,2]
[371752397,1752417059458,-460.0,0.00019178,2]
[371752398,1752417059468,-2049.75,0.00019178,2]
[371752399,1752417059478,-2391.08,0.00019178,2]
[371752400,1752417059488,-1185.33,0.00019178,2]
[371752401,1752417059498,-460.0,0.00019178,2]
[371752402,1752417059508,-460.0,0.00019178,2]
[371752403,1752417059517,-587.99166495,0.00019178,2]
[371752404,1752417059526,-638.03,0.00019178,2]
[371752405,1752417059536,-566.49,0.00019178,2]
[371752406,1752417059545,-460.0,0.00019178,2]
[371752407,1752417059554,-460.0,0.00019178,2]
[371752408,1752417059564,-460.0,0.00019178,2]
[371752409,1752417059573,-489.24275503,0.00019178,2]
[371752410,1752417059582,-566.53,0.00019178,2]
[371752411,1752417059591,-469.79,0.00019178,2]
[371752412,1752417059601,-460.0,0.00019178,2]
[371752413,1752417059610,-533.19,0.00019178,2]
[371752414,1752417059620,-195.8,0.00019178,2]
[371752415,1752417059630,-1700.96,0.00019178,2]
[371752416,1752417059639,-888.31,0.00019178,2]
[371752417,1752417059648,-460.0,0.00019178,2]
[371752418,1752417059657,-512.21,0.00019178,2]
[371752419,1752417059667,-460.0,0.00019178,2]
[371752420,1752417059676,-460.0,0.00019178,2]
[371752421,1752417059686,-506.15,0.00019178,2]
[371752422,1752417059696,-581.54,0.00019178,2]
[371752423,1752417059707,-2385.39,0.00019178,2]
[371752424,1752417059717,-460.0,0.00019178,2]
[371752425,1752417059726,-498.33,0.00019178,2]
[371752426,1752417059736,-460.0,0.00019178,2]
[371752427,1752417059748,-460.0,0.00019178,2]
[371752428,1752417059757,-1227.15,0.00019178,2]
[371752429,1752417059767,-964.9,0.00019178,2]
[371752430,1752417059779,-460.0,0.00019178,2]
[371752431,1752417059789,-460.0,0.00019178,2]
[371752432,1752417059798,-460.0,0.00019178,2]
[371752433,1752417059808,-460.0,0.00019178,2]
[371752434,1752417059817,-666.0,0.00019178,2]
[371752435,1752417059826,-477.993214,0.00019178,2]
[371752436,1752417059836,-527.52,0.000192,2]
[371752437,1752417059846,-1419.12,0.000192,2]
[371752438,1752417059855,-3764.42934704,0.00019273,2]
[371752439,1752417059866,-151.0,0.00019329,2]
[371752440,1752417059879,-151.0,0.00019329,2]
[371752441,1752417059889,-151.0,0.00019329,2]
[371752442,1752417059899,-151.0,0.00019329,2]
[371752443,1752417059908,-83982.44248293,0.00019329,2]
[371752444,1752417059918,-500.0,0.00019373,2]
[371752445,1752417059927,-660.78,0.00019451,2]
[371752446,1752417059937,-460.0,0.00019451,2]
[371752447,1752417059949,-897.35,0.00019451,2]
[371752448,1752417059958,-3077.37,0.00019451,2]
[371752449,1752417059968,-485.94,0.00019451,2]
[371752450,1752417059977,-460.0,0.00019451,2]
[371752451,1752417059987,-782.43,0.00019451,2]
[371752452,1752417059996,-1292.91,0.00019451,2]
[371752453,1752417060006,-676.84,0.00019451,2]
[371752454,1752417060016,-460.0,0.00019451,2]
[371752455,1752417060026,-151.0,0.00019452,2]
[371752456,1752417060037,-557.4,0.00019452,2]
[371752457,1752417060046,-460.0,0.00019452,2]
[371752458,1752417060056,-460.0,0.00019452,2]
[371752459,1752417060067,-460.0,0.00019452,2]
[371752460,1752417060077,-466.27,0.00019452,2]
[371752461,1752417060087,-460.0,0.00019452,2]
[371752462,1752417060098,-460.0,0.00019452,2]
[371752463,1752417060108,-581.35,0.00019452,2]
[371752464,1752417060118,-648.37,0.00019452,2]
[371752465,1752417060128,-460.0,0.00019452,2]
[371752466,1752417060137,-673.61,0.00019452,2]
[371752467,1752417060147,-557.7,0.00019452,2]
[371752468,1752417060157,-460.0,0.00019452,2]
[371752469,1752417060166,-460.0,0.00019452,2]
[371752470,1752417060175,-460.0,0.00019452,2]
[371752471,1752417060186,-151.0,0.00019452,2]
[371752472,1752417060195,-241.39046,0.00019452,2]
[371752473,1752417060206,-241.39046,0.00019452,2]
[371752474,1752417060216,-151.0,0.00019452,2]
[371752475,1752417060225,-460.0,0.00019452,2]
[371752476,1752417060235,-460.0,0.00019452,2]
[371752477,1752417060245,-576.54,0.00019452,2]
[371752478,1752417060254,-460.0,0.00019452,2]
[371752479,1752417060264,-1648.08,0.00019452,2]
[371752480,1752417060273,-498.33,0.00019452,2]
[371752481,1752417060282,-460.0,0.00019452,2]
[371752482,1752417060292,-460.0,0.00019452,2]
[371752483,1752417060302,-460.0,0.00019452,2]
[371752484,1752417060312,-650.21,0.00019452,2]
[371752485,1752417060321,-460.0,0.00019452,2]
[371752486,1752417060331,-2049.75,0.00019452,2]
[371752487,1752417060341,-2391.08,0.00019452,2]
[371752488,1752417060351,-1185.33,0.00019452,2]
[371752489,1752417060360,-460.0,0.00019452,2]
[371752490,1752417060369,-460.0,0.00019452,2]
[371752491,1752417060379,-638.03,0.00019452,2]
[371752492,1752417060476,-566.49,0.00019452,2]
[371752493,1752417060486,-460.0,0.00019452,2]
[371752494,1752417060495,-460.0,0.00019452,2]
[371752495,1752417060506,-460.0,0.00019452,2]
[371752496,1752417060516,-566.53,0.00019452,2]
[371752497,1752417060525,-469.79,0.00019452,2]
[371752498,1752417060535,-460.0,0.00019452,2]
[371752499,1752417060544,-533.19,0.00019452,2]
[371752500,1752417060554,-1700.96,0.00019452,2]
[371752501,1752417060563,-888.31,0.00019452,2]
[371752502,1752417060573,-460.0,0.00019452,2]
[371752503,1752417060582,-512.21,0.00019452,2]
[371752504,1752417060592,-460.0,0.00019452,2]
[371752505,1752417060601,-506.15,0.00019452,2]
[371752506,1752417060611,-581.54,0.00019452,2]
[371752507,1752417060620,-2385.39,0.00019452,2]
[371752508,1752417060629,-460.0,0.00019452,2]
[371752509,1752417060639,-498.33,0.00019452,2]
[371752510,1752417060649,-460.0,0.00019452,2]
[371752511,1752417060658,-460.0,0.00019452,2]
[371752512,1752417060667,-1227.15,0.00019452,2]
[371752513,1752417060676,-964.9,0.00019452,2]
[371752514,1752417060686,-460.0,0.00019452,2]
[371752515,1752417060695,-460.0,0.00019452,2]
[371752516,1752417060706,-174.98397861,0.00019452,2]
[371752517,1752417060715,-327.71838445,0.00019452,2]
[371752518,1752417060724,-467.66,0.000195,2]
[371752519,1752417060733,-836.55255679,0.00019512,2]
[371752520,1752417060742,-460.0,0.00019517,2]
[371752521,1752417060751,-587.0,0.00019535,2]
[371752522,1752417060762,-215.0738,0.00019559,2]
[371752523,1752417060771,-660.78,0.00019725,2]
[371752524,1752417060781,-460.0,0.00019725,2]
[371752525,1752417060790,-897.35,0.00019725,2]
[371752526,1752417060800,-3077.37,0.00019725,2]
[371752527,1752417060809,-485.94,0.00019725,2]
[371752528,1752417060819,-460.0,0.00019725,2]
[371752529,1752417060829,-782.43,0.00019725,2]
[371752530,1752417060838,-1292.91,0.00019725,2]
[371752531,1752417060848,-676.84,0.00019725,2]
[371752532,1752417060857,-460.0,0.00019725,2]
[371752533,1752417060868,-557.4,0.00019726,2]
[371752534,1752417060880,-460.0,0.00019726,2]
[371752535,1752417060889,-460.0,0.00019726,2]
[371752536,1752417060898,-272.86,0.00019726,2]
[371752537,1752417060908,-466.27,0.00019726,2]
[371752538,1752417060918,-440.82494386,0.00019726,2]
[371752539,1752417060927,-460.0,0.00019726,2]
[371752540,1752417060936,-581.35,0.00019726,2]
[371752541,1752417060946,-648.37,0.00019726,2]
[371752542,1752417060958,-460.0,0.00019726,2]
[371752543,1752417060967,-673.61,0.00019726,2]
[371752544,1752417060977,-557.7,0.00019726,2]
[371752545,1752417060986,-460.0,0.00019726,2]
[371752546,1752417060996,-460.0,0.00019726,2]
[371752547,1752417061005,-460.0,0.00019726,2]
[371752548,1752417061014,-460.0,0.00019726,2]
[371752549,1752417061024,-460.0,0.00019726,2]
[371752550,1752417061033,-576.54,0.00019726,2]
[371752551,1752417061043,-460.0,0.00019726,2]
[371752552,1752417061054,-1648.08,0.00019726,2]
[371752553,1752417061064,-498.33,0.00019726,2]
[371752554,1752417061073,-460.0,0.00019726,2]
[371752555,1752417061083,-460.0,0.00019726,2]
[371752556,1752417061092,-536.38,0.00019726,2]
[371752557,1752417061101,-650.21,0.00019726,2]
[371752558,1752417061111,-460.0,0.00019726,2]
[371752559,1752417061120,-2049.75,0.00019726,2]
[371752560,1752417061130,-2391.08,0.00019726,2]
[371752561,1752417061139,-1185.33,0.00019726,2]
[371752562,1752417061150,-460.0,0.00019726,2]
[371752563,1752417061159,-460.0,0.00019726,2]
[371752564,1752417061171,-638.03,0.00019726,2]
[371752565,1752417061182,-566.49,0.00019726,2]
[371752566,1752417061193,-460.0,0.00019726,2]
[371752567,1752417061205,-460.0,0.00019726,2]
[371752568,1752417061215,-460.0,0.00019726,2]
[371752569,1752417061225,-566.53,0.00019726,2]
[371752570,1752417061235,-469.79,0.00019726,2]
[371752571,1752417061244,-460.0,0.00019726,2]
[371752572,1752417061254,-533.19,0.00019726,2]
[371752573,1752417061263,-1700.96,0.00019726,2]
[371752574,1752417061272,-888.31,0.00019726,2]
[371752575,1752417061281,-460.0,0.00019726,2]
[371752576,1752417061291,-512.21,0.00019726,2]
[371752577,1752417061300,-460.0,0.00019726,2]
[371752578,1752417061309,-506.15,0.00019726,2]
[371752579,1752417061319,-581.54,0.00019726,2]
[371752580,1752417061328,-2385.39,0.00019726,2]
[371752581,1752417061338,-460.0,0.00019726,2]
[371752582,1752417061347,-498.33,0.00019726,2]
[371752583,1752417061358,-460.0,0.00019726,2]
[371752584,1752417061368,-460.0,0.00019726,2]
[371752585,1752417061378,-1227.15,0.00019726,2]
[371752586,1752417061389,-964.9,0.00019726,2]
[371752587,1752417061398,-514.41046959,0.00019726,2]
[371752588,1752417061408,-460.0,0.00019726,2]
[371752589,1752417061417,-1000.0,0.00019921,2]
[371752590,1752417061427,-660.78,0.00019999,2]
[371752591,1752417061436,-460.0,0.00019999,2]
[371752592,1752417061446,-897.35,0.00019999,2]
[371752593,1752417061458,-3077.37,0.00019999,2]
[371752594,1752417061467,-485.94,0.00019999,2]
[371752595,1752417061477,-460.0,0.00019999,2]
[371752596,1752417061486,-782.43,0.00019999,2]
[371752597,1752417061496,-1292.91,0.00019999,2]
[371752598,1752417061505,-676.84,0.00019999,2]
[371752599,1752417061515,-460.0,0.00019999,2]
[371752600,1752417061526,-557.4,0.0002,2]
[371752601,1752417061535,-460.0,0.0002,2]
[371752602,1752417061545,-460.0,0.0002,2]
[371752603,1752417061555,-466.27,0.0002,2]
[371752604,1752417061564,-460.0,0.0002,2]
[371752605,1752417061574,-581.35,0.0002,2]
[371752606,1752417061584,-648.37,0.0002,2]
[371752607,1752417061593,-673.61,0.0002,2]
[371752608,1752417061602,-460.0,0.0002,2]
[371752609,1752417061612,-557.7,0.0002,2]
[371752610,1752417061622,-460.0,0.0002,2]
[371752611,1752417061631,-460.0,0.0002,2]
[371752612,1752417061642,-460.0,0.0002,2]
[371752613,1752417061652,-460.0,0.0002,2]
[371752614,1752417061662,-460.0,0.0002,2]
[371752615,1752417061671,-576.54,0.0002,2]
[371752616,1752417061680,-460.0,0.0002,2]
[371752617,1752417061689,-1648.08,0.0002,2]
[371752618,1752417061699,-498.33,0.0002,2]
[371752619,1752417061709,-460.0,0.0002,2]
[371752620,1752417061718,-460.0,0.0002,2]
[371752621,1752417061728,-650.21,0.0002,2]
[371752622,1752417061738,-527.17368822,0.0002,2]
[371752623,1752417061748,-2049.75,0.0002,2]
[371752624,1752417061758,-2391.08,0.0002,2]
[371752625,1752417061769,-1185.33,0.0002,2]
[371752626,1752417061779,-460.0,0.0002,2]
[371752627,1752417061790,-460.0,0.0002,2]
[371752628,1752417061799,-638.03,0.0002,2]
[371752629,1752417061810,-566.49,0.0002,2]
[371752630,1752417061820,-460.0,0.0002,2]
[371752631,1752417061830,-460.0,0.0002,2]
[371752632,1752417061839,-460.0,0.0002,2]
[371752633,1752417061849,-566.53,0.0002,2]
[371752634,1752417061859,-469.79,0.0002,2]
[371752635,1752417061870,-460.0,0.0002,2]
[371752636,1752417061881,-17108.01776411,0.0002,2]
[371752637,1752417061890,-533.19,0.0002,2]
[371752638,1752417061900,-1700.96,0.0002,2]
[371752639,1752417061909,-888.31,0.0002,2]
[371752640,1752417061918,-460.0,0.0002,2]
[371752641,1752417061927,-512.21,0.0002,2]
[371752642,1752417061937,-563.29,0.0002,2]
[371752643,1752417061947,-506.15,0.0002,2]
[371752644,1752417061957,-581.54,0.0002,2]
[371752645,1752417061967,-2385.39,0.0002,2]
[371752646,1752417061976,-253.7,0.0002,2]
[371752647,1752417061986,-498.33,0.0002,2]
[371752648,1752417061995,-460.0,0.0002,2]
[371752649,1752417062005,-460.0,0.0002,2]
[371752650,1752417062014,-1227.15,0.0002,2]
[371752651,1752417062024,-964.9,0.0002,2]
[371752652,1752417062034,-1769.22730103,0.0002,4]
[371752653,1752417062043,-460.0,0.0002,2]
[371752654,1752417062053,-560.0,0.00020065,2]
[371752655,1752417062062,-449.722667,0.00020187,2]
[371752656,1752417062071,-287.257331,0.00020273,2]
[371752657,1752417062081,-151.0,0.00020273,2]
[371752658,1752417062090,-151.0,0.00020273,2]
[371752659,1752417062099,-557.4,0.00020273,2]
[371752660,1752417062109,-460.0,0.00020273,2]
[371752661,1752417062118,-598.06,0.00020273,2]
[371752662,1752417062127,-466.27,0.00020273,2]
[371752663,1752417062137,-460.0,0.00020273,2]
[371752664,1752417062146,-581.35,0.00020273,2]
[371752665,1752417062156,-648.37,0.00020273,2]
[371752666,1752417062166,-673.61,0.00020273,2]
[371752667,1752417062175,-287.04883024,0.00020273,2]
[371752668,1752417062267,-557.7,0.00020273,2]
[371752669,1752417062278,-151.0,0.00020273,2]
[371752670,1752417062287,-460.0,0.00020273,2]
[371752671,1752417062297,-237.74216705,0.00020273,2]
[371752672,1752417062306,-460.0,0.00020273,2]
[371752673,1752417062316,-241.39046,0.00020273,2]
[371752674,1752417062325,-660.78,0.00020273,2]
[371752675,1752417062335,-241.39046,0.00020273,2]
[371752676,1752417062344,-151.0,0.00020273,2]
[371752677,1752417062354,-460.0,0.00020273,2]
[371752678,1752417062363,-460.0,0.00020273,2]
[371752679,1752417062373,-460.0,0.00020273,2]
[371752680,1752417062383,-576.54,0.00020273,2]
[371752681,1752417062392,-460.0,0.00020273,2]
[371752682,1752417062402,-897.35,0.00020273,2]
[371752683,1752417062412,-1648.08,0.00020273,2]
[371752684,1752417062421,-498.33,0.00020273,2]
[371752685,1752417062431,-460.0,0.00020273,2]
[371752686,1752417062440,-460.0,0.00020273,2]
[371752687,1752417062450,-650.21,0.00020273,2]
[371752688,1752417062459,-3077.37,0.00020273,2]
[371752689,1752417062469,-2049.75,0.00020273,2]
[371752690,1752417062478,-485.94,0.00020273,2]
[371752691,1752417062489,-2391.08,0.00020273,2]
[371752692,1752417062499,-1185.33,0.00020273,2]
[371752693,1752417062508,-460.0,0.00020273,2]
[371752694,1752417062518,-460.0,0.00020273,2]
[371752695,1752417062527,-460.0,0.00020273,2]
[371752696,1752417062537,-638.03,0.00020273,2]
[371752697,1752417062547,-566.49,0.00020273,2]
[371752698,1752417062556,-460.0,0.00020273,2]
[371752699,1752417062566,-460.0,0.00020273,2]
[371752700,1752417062575,-596.26,0.00020273,2]
[371752701,1752417062584,-566.53,0.00020273,2]
[371752702,1752417062593,-469.79,0.00020273,2]
[371752703,1752417062602,-460.0,0.00020273,2]
[371752704,1752417062612,-533.19,0.00020273,2]
[371752705,1752417062622,-1700.96,0.00020273,2]
[371752706,1752417062632,-888.31,0.00020273,2]
[371752707,1752417062642,-460.0,0.00020273,2]
[371752708,1752417062651,-512.21,0.00020273,2]
[371752709,1752417062661,-782.43,0.00020273,2]
[371752710,1752417062671,-1292.91,0.00020273,2]
[371752711,1752417062680,-506.15,0.00020273,2]
[371752712,1752417062690,-581.54,0.00020273,2]
[371752713,1752417062700,-2385.39,0.00020273,2]
[371752714,1752417062710,-498.33,0.00020273,2]
[371752715,1752417062719,-460.0,0.00020273,2]
[371752716,1752417062729,-460.0,0.00020273,2]
[371752717,1752417062738,-1227.15,0.00020273,2]
[371752718,1752417062747,-964.9,0.00020273,2]
[371752719,1752417062757,-676.84,0.00020273,2]
[371752720,1752417062766,-460.0,0.00020273,2]
[371752721,1752417062777,-460.0,0.00020273,2]
[371752722,1752417062786,-151.0,0.00020547,2]
[371752723,1752417062795,-557.4,0.00020547,2]
[371752724,1752417062805,-460.0,0.00020547,2]
[371752725,1752417062814,-466.27,0.00020547,2]
[371752726,1752417062824,-460.0,0.00020547,2]
[371752727,1752417062833,-581.35,0.00020547,2]
[371752728,1752417062843,-648.37,0.00020547,2]
[371752729,1752417062853,-673.61,0.00020547,2]
[371752730,1752417062863,-557.7,0.00020547,2]
[371752731,1752417062877,-460.0,0.00020547,2]
[371752732,1752417062887,-460.0,0.00020547,2]
[371752733,1752417062896,-660.78,0.00020547,2]
[371752734,1752417062905,-460.0,0.00020547,2]
[371752735,1752417062915,-460.0,0.00020547,2]
[371752736,1752417062924,-460.0,0.00020547,2]
[371752737,1752417062934,-576.54,0.00020547,2]
[371752738,1752417062943,-460.0,0.00020547,2]
[371752739,1752417062954,-897.35,0.00020547,2]
[371752740,1752417062965,-1648.08,0.00020547,2]
[371752741,1752417062974,-498.33,0.00020547,2]
[371752742,1752417062984,-460.0,0.00020547,2]
[371752743,1752417062993,-460.0,0.00020547,2]
[371752744,1752417063002,-650.21,0.00020547,2]
[371752745,1752417063012,-3077.37,0.00020547,2]
[371752746,1752417063021,-2049.75,0.00020547,2]
[371752747,1752417063031,-485.94,0.00020547,2]
[371752748,1752417063041,-2391.08,0.00020547,2]
[371752749,1752417063051,-1185.33,0.00020547,2]
[371752750,1752417063061,-460.0,0.00020547,2]
[371752751,1752417063071,-460.0,0.00020547,2]
[371752752,1752417063082,-460.0,0.00020547,2]
[371752753,1752417063092,-566.49,0.00020547,2]
[371752754,1752417063102,-460.0,0.00020547,2]
[371752755,1752417063111,-460.0,0.00020547,2]
[371752756,1752417063121,-638.03,0.00020547,2]
[371752757,1752417063131,-566.53,0.00020547,2]
[371752758,1752417063141,-469.79,0.00020547,2]
[371752759,1752417063151,-460.0,0.00020547,2]
[371752760,1752417063160,-533.19,0.00020547,2]
[371752761,1752417063171,-1700.96,0.00020547,2]
[371752762,1752417063180,-888.31,0.00020547,2]
[371752763,1752417063190,-188.4593207,0.00020547,2]
[371752764,1752417063200,-512.21,0.00020547,2]
[371752765,1752417063210,-782.43,0.00020547,2]
[371752766,1752417063220,-1292.91,0.00020547,2]
[371752767,1752417063230,-506.15,0.00020547,2]
[371752768,1752417063239,-581.54,0.00020547,2]
[371752769,1752417063249,-2385.39,0.00020547,2]
[371752770,1752417063259,-498.33,0.00020547,2]
[371752771,1752417063269,-460.0,0.00020547,2]
[371752772,1752417063278,-460.0,0.00020547,2]
[371752773,1752417063290,-1227.15,0.00020547,2]
[371752774,1752417063300,-964.9,0.00020547,2]
[371752775,1752417063310,-676.84,0.00020547,2]
[371752776,1752417063320,-460.0,0.00020547,2]
[371752777,1752417063330,-572.84843279,0.00020547,2]
[371752778,1752417063340,-180.0,0.00020613,2]
[371752779,1752417063350,-305.058,0.0002075,2]
[371752780,1752417063360,-557.4,0.00020821,2]
[371752781,1752417063370,-460.0,0.00020821,2]
[371752782,1752417063379,-466.27,0.00020821,2]
[371752783,1752417063390,-460.0,0.00020821,2]
[371752784,1752417063400,-581.35,0.00020821,2]
[371752785,1752417063410,-648.37,0.00020821,2]
[371752786,1752417063420,-673.61,0.00020821,2]
[371752787,1752417063429,-557.7,0.00020821,2]
[371752788,1752417063439,-161.62459805,0.00020821,2]
[371752789,1752417063452,-460.0,0.00020821,2]
[371752790,1752417063461,-660.78,0.00020821,2]
[371752791,1752417063471,-460.0,0.00020821,2]
[371752792,1752417063481,-460.0,0.00020821,2]
[371752793,1752417063491,-576.54,0.00020821,2]
[371752794,1752417063502,-460.0,0.00020821,2]
[371752795,1752417063512,-897.35,0.00020821,2]
[371752796,1752417063522,-1648.08,0.00020821,2]
[371752797,1752417063532,-498.33,0.00020821,2]
[371752798,1752417063542,-460.0,0.00020821,2]
[371752799,1752417063552,-460.0,0.00020821,2]
[371752800,1752417063561,-650.21,0.00020821,2]
[371752801,1752417063571,-3077.37,0.00020821,2]
[371752802,1752417063580,-2049.75,0.00020821,2]
[371752803,1752417063590,-485.94,0.00020821,2]
[371752804,1752417063599,-2391.08,0.00020821,2]
[371752805,1752417063609,-1185.33,0.00020821,2]
[371752806,1752417063618,-460.0,0.00020821,2]
[371752807,1752417063628,-460.0,0.00020821,2]
[371752808,1752417063638,-460.0,0.00020821,2]
[371752809,1752417063648,-566.49,0.00020821,2]
[371752810,1752417063658,-460.0,0.00020821,2]
[371752811,1752417063667,-460.0,0.00020821,2]
[371752812,1752417063676,-638.03,0.00020821,2]
[371752813,1752417063686,-566.53,0.00020821,2]
[371752814,1752417063695,-469.79,0.00020821,2]
[371752815,1752417063706,-460.0,0.00020821,2]
[371752816,1752417063716,-533.19,0.00020821,2]
[371752817,1752417063726,-1700.96,0.00020821,2]
[371752818,1752417063736,-888.31,0.00020821,2]
[371752819,1752417063746,-512.21,0.00020821,2]
[371752820,1752417063756,-782.43,0.00020821,2]
[371752821,1752417063766,-1292.91,0.00020821,2]
[371752822,1752417063776,-506.15,0.00020821,2]
[371752823,1752417063786,-581.54,0.00020821,2]
[371752824,1752417063795,-2385.39,0.00020821,2]
[371752825,1752417063806,-498.33,0.00020821,2]
[371752826,1752417063815,-519.26843284,0.00020821,2]
[371752827,1752417063825,-460.0,0.00020821,2]
[371752828,1752417063835,-1227.15,0.00020821,2]
[371752829,1752417063845,-964.9,0.00020821,2]
[371752830,1752417063946,-676.84,0.00020821,2]
[371752831,1752417063960,-460.0,0.00020821,2]
[371752832,1752417063970,-223.0315306,0.00020928,2]
[371752833,1752417063980,-6633.30746405,0.00020946,2]
[371752834,1752417063990,-557.4,0.00021095,2]
[371752835,1752417064001,-460.0,0.00021095,2]
[371752836,1752417064011,-466.27,0.00021095,2]
[371752837,1752417064021,-212.92219118,0.00021095,2]
[371752838,1752417064032,-581.35,0.00021095,2]
[371752839,1752417064043,-648.37,0.00021095,2]
[371752840,1752417064054,-673.61,0.00021095,2]
[371752841,1752417064068,-557.7,0.00021095,2]
[371752842,1752417064080,-460.0,0.00021095,2]
[371752843,1752417064090,-151.0,0.00021095,2]
[371752844,1752417064100,-241.39046,0.00021095,2]
[371752845,1752417064110,-660.78,0.00021095,2]
[371752846,1752417064120,-241.39046,0.00021095,2]
[371752847,1752417064130,-151.0,0.00021095,2]
[371752848,1752417064140,-460.0,0.00021095,2]
[371752849,1752417064150,-460.0,0.00021095,2]
[371752850,1752417064159,-576.54,0.00021095,2]
[371752851,1752417064169,-460.0,0.00021095,2]
[371752852,1752417064179,-897.35,0.00021095,2]
[371752853,1752417064188,-1648.08,0.00021095,2]
[371752854,1752417064198,-498.33,0.00021095,2]
[371752855,1752417064209,-460.0,0.00021095,2]
[371752856,1752417064219,-460.0,0.00021095,2]
[371752857,1752417064228,-650.21,0.00021095,2]
[371752858,1752417064238,-3077.37,0.00021095,2]
[371752859,1752417064248,-2049.75,0.00021095,2]
[371752860,1752417064258,-485.94,0.00021095,2]
[371752861,1752417064269,-2391.08,0.00021095,2]
[371752862,1752417064278,-1185.33,0.00021095,2]
[371752863,1752417064288,-460.0,0.00021095,2]
[371752864,1752417064298,-361.6,0.00021095,2]
[371752865,1752417064308,-460.0,0.00021095,2]
[371752866,1752417064318,-566.49,0.00021095,2]
[371752867,1752417064328,-460.0,0.00021095,2]
[371752868,1752417064338,-460.0,0.00021095,2]
[371752869,1752417064348,-638.03,0.00021095,2]
[371752870,1752417064358,-566.53,0.00021095,2]
[371752871,1752417064368,-469.79,0.00021095,2]